Cogmind - Beta 12 @@@ ROGUE MODE // 2023.03.25 @ 20:44:50 Player: Plexion Result: Destroyed by EX-DEC with AWS/EX-DEC Performance ------------- Evolutions (1) 500 Regions Visited (5) 1000 Robots Destroyed (52) 260 Value Destroyed (1152) 1152 Prototype IDs (24) 480 Alien Tech Used (0) 0 Bonus (321) 321 TOTAL SCORE: 3713 Bonus ------- Follower Combat Kills 21 Aligned with FarCom 300 Cogmind --------- Core Integrity 0/400 Matter 163/300 Energy 170/170 System Corruption 6% Temperature Cool (6) Movement Treading (320) Ox2 Location -9/Exiles Parts ------- > --- POWER (1) -------- Makeshift Power Source > --- PROPULSION (3) --- Light Treads Armored Wheel > --- UTILITY (3) ------ High-capacity Storage Unit > --- WEAPON (2) ------- Assault Rifle > --- INVENTORY (20) --- Light Treads Light Treads Light Treads Medium Matter Pod (100) Medium Matter Pod (37) Gravity Neutralizer Makeshift Sensor Array Improved Targeting Computer Experimental Targeting Computer Light Armor Plating Light Armor Plating Medium Armor Plating Assault Rifle Assault Rifle Rocket Launcher Rocket Launcher Peak State ------------ > --- POWER ------------ Makeshift Power Source > --- PROPULSION ------- Light Treads Light Treads Light Treads > --- UTILITY ---------- High-capacity Storage Unit Improved Targeting Computer Hardened Light Armor Plating > --- WEAPON ----------- Assault Rifle Autogun > --- INVENTORY -------- Light Treads Light Treads Armored Wheel Medium Matter Pod Medium Matter Pod Gravity Neutralizer Improved Targeting Computer Experimental Targeting Computer Light Armor Plating Light Armor Plating Medium Armor Plating Assault Rifle Assault Rifle Rocket Launcher Rocket Launcher [Rating: 18] Favorites ----------- Power Improved Ion Engine Engine Improved Ion Engine Propulsion Light Treads Treads Light Treads Wheel Armored Wheel Utility High-capacity Storage Unit Device Gravity Neutralizer Storage High-capacity Storage Unit Processor Improved Targeting Computer Protection Light Armor Plating Weapon Assault Rifle Ballistic Gun Assault Rifle Launcher Rocket Launcher Build | -11 -10 -10 -9 -9 -9 ------- Run | Jun Mat Min Mat Min Exi Slots Evolved 2 | . . . 2 . . Power . | . . . . . . Propulsion 1 | . . . 1 . . Utility 1 | . . . 1 . . Weapon . | . . . . . . Parts Attached 55 | 6 5 2 12 11 19 Power 5 | 1 1 . 1 1 1 Engine 5 | 1 1 . 1 1 1 Core . | . . . . . . Reactor . | . . . . . . Propulsion 20 | 2 . 1 4 5 8 Treads 17 | 2 . 1 4 5 5 Leg . | . . . . . . Wheel 3 | . . . . . 3 Hover . | . . . . . . Flight . | . . . . . . Utility 10 | 1 2 . 3 1 3 Device 1 | . . . . . 1 Storage 2 | 1 1 . . . . Processor 2 | . 1 . 1 . . Hackware . | . . . . . . Protection 5 | . . . 2 1 2 Artifact . | . . . . . . Weapon 20 | 2 2 1 4 4 7 Energy Gun . | . . . . . . Energy Cannon . | . . . . . . Ballistic Gun 15 | 2 1 1 3 3 5 Ballistic Cannon . | . . . . . . Launcher 5 | . 1 . 1 1 2 Special Weapon . | . . . . . . Impact Weapon . | . . . . . . Slashing Weapon . | . . . . . . Piercing Weapon . | . . . . . . Special Melee Weapon . | . . . . . . Unidentified Prototypes 1 | . . . . . 1 Parts Lost 15 | . . 2 . 1 12 Power 1 | . . . . . 1 Propulsion 5 | . . 1 . . 4 Utility 4 | . . . . 1 3 Weapon 5 | . . 1 . . 4 Highest Loss Streak 4 | . . 1 . 1 4 To Critical Strikes 5 | . . . . . 5 Average Slot Usage (%) 97 | . 87 99 96 99 97 Engine 11 | . 14 14 11 11 9 Treads 31 | . 28 28 32 33 32 Storage 11 | . 14 14 11 11 11 Processor 10 | . 1 14 11 11 10 Protection 6 | . . . 8 10 10 Ballistic Gun 23 | . 27 27 22 22 21 Naked Turns . | . . . . . . Heaviest Build 57 | 12 56 51 56 56 57 Greatest Support 60 | 40 40 40 60 60 60 Greatest Overweight (x) 4 | . 1 1 1 . 4 Average Overweight (x) . | . . 1 . . . Largest Inventory Capacity 20 | 8 20 20 20 20 20 Average Capacity 19 | 7 14 20 20 20 20 Most Carried 20 | 2 12 13 20 20 20 Average Carried 15 | 1 5 12 18 19 18 Final Capacity 20 | 8 20 20 20 20 20 Final Carried 20 | 2 12 12 20 20 16 Class Distribution -------------------- 58% | Scavenger-Mutant 41% | Mutant Dominant Class ---------------- Mutant | -10/Materials Mutant | -10/Mines Scavenger-Mutant | -9/Materials Scavenger-Mutant | -9/Mines Scavenger-Mutant | -9/Exiles Resources | -11 -10 -10 -9 -9 -9 ----------- Run | Jun Mat Min Mat Min Exi Matter Collected 2014 | 225 167 223 387 248 764 Remotely . | . . . . . . Salvage Created 1954 | . 204 357 700 385 308 Parts 134 | . 18 16 41 29 30 Haulers Intercepted 5 | . 1 . 4 . . Recyclers Shooed 3 | . . 1 2 . . Parts Field Recycled . | . . . . . . Retrieved Matter . | . . . . . . Parts Self-Destructed . | . . . . . . Prevented . | . . . . . . Kills | -11 -10 -10 -9 -9 -9 ------- Run | Jun Mat Min Mat Min Exi Combat Hostiles Destroyed 38 | . 8 6 10 10 4 Guns 26 | . 5 6 7 7 1 AOE 12 | . 3 . 3 3 3 Classes Destroyed 12 | . 3 1 2 3 3 Tunneler 1 | . . . . 1 . Hauler 5 | . 1 . 4 . . Recycler 3 | . . 1 2 . . Mechanic 1 | . . . 1 . . Turret 1 | . . . . . 1 Swarmer 12 | . 6 . 3 3 . Grunt 13 | . 2 6 2 3 . Brawler 1 | . . . . 1 . Duelist 1 | . . . . 1 . Sentry 7 | . . . 5 2 . Zionite 6 | . . . . . 6 Assembled 3 | . . . . . 3 Best Kill Streak 5 | . 5 2 4 4 5 Combat Bots Only 5 | . 5 2 3 3 3 Max Kills in Single Turn 4 | . 2 1 4 4 2 Gunslinging . | . . . . . . Exploded 3 | . 2 . 3 3 2 Melee . | . . . . . . Uniques/NPCs Destroyed 2 | . . . . . 2 8R-AWN (-9/Exiles) EX-HEX (-9/Exiles) Combat | -11 -10 -10 -9 -9 -9 -------- Run | Jun Mat Min Mat Min Exi Damage Taken 3088 | . 289 379 221 434 1765 Core 541 | . 22 108 24 37 350 Absorbed by Shields . | . . . . . . Core Remaining (%) 74 | 100 . 48 . . . Volleys Fired 199 | . 22 25 45 23 84 Largest 2 | . 2 2 2 2 2 Hottest 46 | . 40 40 46 46 46 Shots Fired 378 | . 41 50 89 45 153 Gun 363 | . 38 50 88 44 143 Cannon . | . . . . . . Launcher 15 | . 3 . 1 1 10 Special . | . . . . . . Kinetic 363 | . 38 50 88 44 143 Thermal . | . . . . . . Explosive 15 | . 3 . 1 1 10 Electromagnetic . | . . . . . . Robot Hit Streak 34 | . 6 13 34 13 21 Robot Miss Streak 3 | . 2 2 2 2 3 Penetration Max . | . . . . . . Secondary Targets 4 | . 2 . 1 1 . Max Gunslinging Chain 1 | . 1 . 1 1 . Shots Hit Robots 272 | . 21 40 70 34 107 Core Hits 109 | . 12 16 27 18 36 Critical Kills . | . . . . . . Critical Parts Destroyed 2 | . . . 1 . 1 Critical Strikes 3 | . . . 1 . 2 Destroy 3 | . . . 1 . 2 Melee Attacks . | . . . . . . Impact . | . . . . . . Slashing . | . . . . . . Piercing . | . . . . . . Sneak Attacks . | . . . . . . Combat Hostiles . | . . . . . . Follow-up Attacks . | . . . . . . Damage Inflicted 4785 | . 421 544 1197 689 1934 Guns 3814 | . 276 536 972 527 1503 Cannons . | . . . . . . Explosions 906 | . 145 . 217 145 399 Melee . | . . . . . . Ramming 65 | . . 8 8 17 32 Kinetic 3814 | . 276 536 972 527 1503 Thermal . | . . . . . . Explosive 906 | . 145 . 217 145 399 Electromagnetic . | . . . . . . Impact . | . . . . . . Slashing . | . . . . . . Piercing . | . . . . . . Highest Corruption 6 | . . . . . 6 Average Corruption 2 | . . . . . 2 Corruption Purged . | . . . . . . Corruption Blocked . | . . . . . . Effects 2 | . . . . . 2 Misfires 1 | . . . . . 1 Weapon Failures 1 | . . . . . 1 Overload Shots . | . . . . . . Overflow Damage 45 | . . . 45 . . Projectiles . | . . . . . . Explosions 45 | . . . 45 . . Melee . | . . . . . . Knockbacks 2 | . . . . 1 1 Impact 2 | . . . . 1 1 Kinetic . | . . . . . . Secondary . | . . . . . . Self-Inflicted Damage . | . . . . . . Shots . | . . . . . . Rammed 16 | . . 3 2 1 10 Targets Rammed 16 | . . 3 2 1 10 Kicked . | . . . . . . Crushed . | . . . . . . Highest Temperature 60 | . 2 9 4 11 60 Average Temperature 12 | . 2 3 2 4 22 Received Heat Transfer 507 | . 81 222 84 111 9 Siege Activations . | . . . . . . Robots Corrupted . | . . . . . . Combat Hostiles . | . . . . . . Parts Fried . | . . . . . . Impact Corruptions . | . . . . . . Robots Melted . | . . . . . . Combat Hostiles . | . . . . . . Parts Melted . | . . . . . . Heat Transferred . | . . . . . . Parts Sabotaged . | . . . . . . Parts Stolen . | . . . . . . Parts Stripped . | . . . . . . Power Chain Reactions . | . . . . . . Missiles Intercepted . | . . . . . . Alert | -11 -10 -10 -9 -9 -9 ------- Run | Jun Mat Min Mat Min Exi Peak Influence 230 | . 230 96 207 221 . Initial 30 | . . 14 . 30 . Average 63 | . 90 25 72 96 . Maximum Alert Level 1 | . 1 . 1 1 . Low Security (%) 97 | 100 95 100 97 94 . Level 1 2 | . 4 . 2 5 . Level 2 . | . . . . . . Level 3 . | . . . . . . Level 4 . | . . . . . . Level 5 . | . . . . . . High Security . | . . . . . . Max Security . | . . . . . . Squads Dispatched . | . . . . . . Investigation . | . . . . . . Extermination . | . . . . . . Reinforcement . | . . . . . . Assault . | . . . . . . Garrison . | . . . . . . Intercept . | . . . . . . Searches Triggered . | . . . . . . Construction Impeded . | . . . . . . Haulers Reinforced . | . . . . . . Active Scanning Responses . | . . . . . . Cargo Convoy Interrupts . | . . . . . . Stealth | -11 -10 -10 -9 -9 -9 --------- Run | Jun Mat Min Mat Min Exi Distress Signals . | . . . . . . Communications Jammed . | . . . . . . Distress Signals . | . . . . . . Times Spotted 71 | . 9 6 19 11 26 Peak Tracking Total 9 | . 5 2 3 3 9 Tactical Retreats 6 | . . . . 1 5 Traps | -11 -10 -10 -9 -9 -9 ------- Run | Jun Mat Min Mat Min Exi Traps Triggered . | . . . . . . Indirectly . | . . . . . . Trap Hack Attempts . | . . . . . . Triggered . | . . . . . . Disarmed . | . . . . . . Reprogrammed . | . . . . . . Reused . | . . . . . . Traps Extracted . | . . . . . . Installed . | . . . . . . Triggered . | . . . . . . Exploded 3 | . . . . . 3 Machines | -11 -10 -10 -9 -9 -9 ---------- Run | Jun Mat Min Mat Min Exi Machines Disabled 8 | . 1 . 1 1 5 Max in Single Turn 2 | . 1 . 1 1 2 Machines Repaired . | . . . . . . Machines Sabotaged . | . . . . . . Overloaded Fab Kills . | . . . . . . Hacking | -11 -10 -10 -9 -9 -9 --------- Run | Jun Mat Min Mat Min Exi Machines Accessed 8 | . 3 1 2 . 2 Terminals 6 | . 3 1 2 . . Fabricators . | . . . . . . Repair Stations . | . . . . . . Recycling Units . | . . . . . . Scanalyzers . | . . . . . . Garrison Access . | . . . . . . Total Hacks 20 | . 8 5 5 . 2 Successful 6 | . 2 2 . . 2 Failed 14 | . 6 3 5 . . Catastrophic . | . . . . . . Database Lockouts . | . . . . . . Manual 19 | . 8 5 5 . 1 Terminals 18 | . 8 5 5 . . Fabricators . | . . . . . . Repair Stations . | . . . . . . Recycling Units . | . . . . . . Scanalyzers . | . . . . . . Garrison Access . | . . . . . . Terminal Hacks 6 | . 2 2 . . 2 Record 1 | . . . . . 1 Robot Analysis 4 | . 2 2 . . . EX-Prototype ID Bank 1 | . . . . . 1 Fabricator Hacks . | . . . . . . Repair Station Hacks . | . . . . . . Recycling Unit Hacks . | . . . . . . Scanalyzer . | . . . . . . Garrison Access Hacks . | . . . . . . Unauthorized Hacks . | . . . . . . Terminals . | . . . . . . Fabricators . | . . . . . . Repair Stations . | . . . . . . Recycling Units . | . . . . . . Scanalyzers . | . . . . . . Garrison Access . | . . . . . . Data Cores Recovered . | . . . . . . Used . | . . . . . . Hacking Detections 6 | . 3 1 2 . . Full Trace Events . | . . . . . . Feedback Events . | . . . . . . Feedback Blocked . | . . . . . . Robot Schematics Acquired . | . . . . . . Robots Built . | . . . . . . Authchips . | . . . . . . Time . | . . . . . . Total Robot Build Rating . | . . . . . . Part Schematics Acquired . | . . . . . . Parts Built . | . . . . . . Authchips . | . . . . . . Time . | . . . . . . Total Part Build Rating . | . . . . . . Parts Repaired . | . . . . . . Time . | . . . . . . Parts Recycled . | . . . . . . Recycled Matter . | . . . . . . Retrieved Matter . | . . . . . . Retrieved Components . | . . . . . . Parts Scanalyzed . | . . . . . . Part Schematics Acquired . | . . . . . . Parts Damaged . | . . . . . . Bothacking | -11 -10 -10 -9 -9 -9 ------------ Run | Jun Mat Min Mat Min Exi Used RIF Installer . | . . . . . . Robots Hacked . | . . . . . . Non-combat . | . . . . . . Combat . | . . . . . . Robot Hacks Applied . | . . . . . . Relay Couplers Released . | . . . . . . Fabnet Peak Effective % . | . . . . . . Robots Rewired . | . . . . . . Allies Hacked . | . . . . . . Hacks Repelled . | . . . . . . Allies | -11 -10 -10 -9 -9 -9 -------- Run | Jun Mat Min Mat Min Exi Total Allies 5 | . . . . 5 . Largest Group 3 | . . . . 3 2 Highest-Rated Group 41 | . . . . 41 41 Highest-Rated Ally 31 | . . . . 31 31 Total Orders . | . . . . . . Ally Attacks 18 | . . . . 18 . Total Damage 166 | . . . . 166 . Kills 4 | . . . . 4 . Allies Corrupted . | . . . . . . Allies Melted . | . . . . . . Intel | -11 -10 -10 -9 -9 -9 ------- Run | Jun Mat Min Mat Min Exi Robot Analysis Total 4 | . 2 2 . . . Derelict Logs Recovered 4 | . . 2 . 2 . Drone Launches . | . . . . . . Drone Recoveries . | . . . . . . Exploration | -11 -10 -10 -9 -9 -9 ------------- Run | Jun Mat Min Mat Min Exi Turns Passed 5604 | 69 480 1264 1162 870 1759 Spaces Moved 2629 | 39 199 481 592 473 845 Core 4 | 4 . . . . . Treads 2606 | 35 199 481 592 473 826 Legs . | . . . . . . Wheels 19 | . . . . . 19 Hover . | . . . . . . Flight . | . . . . . . Fastest Speed 50 | 50 160 240 160 160 150 Average Speed 177 | 148 200 240 162 160 159 Slowest Speed 240 | 160 240 240 240 160 160 Overloaded Moves . | . . . . . . Propulsion Burnouts . | . . . . . . Robots Hopped . | . . . . . . Cave-ins Triggered . | . . . . . . Exploration Rate (%) 55 | 4 34 95 39 86 75 Regions Visited 5 Branch Regions 3 Pre-discovered Areas 3 | . . . . 2 1 Known Exits Taken 1 | . . 1 . . . Unknown Exits Taken 4 | 1 1 . 1 1 . Scrap Searched 2 | . . 1 . 1 . Spaces Dug 35 | . 20 . . 7 8 Terrain Destroyed 48 | . 20 . 7 7 14 Melee . | . . . . . . Projectile . | . . . . . . AOE 48 | . 20 . 7 7 14 Terrain Rammed . | . . . . . . Walls Destroyed . | . . . . . . Machines Disabled . | . . . . . . Actions | -11 -10 -10 -9 -9 -9 --------- Run | Jun Mat Min Mat Min Exi Total 3189 | 48 240 537 709 549 1106 Wait 193 | . . 25 30 19 119 Move 2624 | 38 198 480 591 472 845 Hop . | . . . . . . Pick Up 55 | 3 11 2 15 10 14 Fast Attach 13 | 6 2 . 2 1 2 Attach 12 | . . 2 . 1 9 Detach 4 | . 1 . . . 3 Swap 30 | . 3 . 10 9 8 Drop 43 | 1 3 . 14 13 12 Fire 199 | . 22 25 45 23 84 Melee . | . . . . . . Ram . | . . . . . . Kick . | . . . . . . Crush 16 | . . 3 2 1 10 Escape Stasis . | . . . . . . Rewire . | . . . . . . Trap . | . . . . . . Miscellaneous . | . . . . . . Route ------- -11/Junkyard -10/Materials -10/Mines (discovered 2 exits: *Mat x2) -9/Materials (discovered 2 exits: [*Mat] / [*Min]) -9/Mines (discovered 4 exits: [*Mat x2] / *Exi / [*Zio]) -9/Exiles (discovered 1 exit: [*Min]) History --------- Turn | Location | Event 4 | -11/Junkyard | Discovered new exit (range 15) 70 | -11/Junkyard | Entered Materials 317 | -10/Materials | Build established: Mutant 414 | -10/Materials | Discovered new exit (range 11) 550 | -10/Materials | Entered Mines 757 | -10/Mines | Found a hidden stash of uninstalled traps 792 | -10/Mines | Received a Rocket Launcher from a helpful Derelict 832 | -10/Mines | Discovered new exit (range 8) 1127 | -10/Mines | A weapon hastily lodged in a ceiling crevice suddenly fell to the ground 1192 | -10/Mines | Core integrity fell below 50% 1196 | -10/Mines | Identified exit to Materials 1814 | -10/Mines | Entered Materials 1814 | -9/Materials | Evolved 2 slots: Propulsion x1, Utility x1 2044 | -9/Materials | Discovered new exit (range 11) 2259 | -9/Materials | Discovered new exit (range 16) 2403 | -9/Materials | Build established: Scavenger-Mutant 2976 | -9/Materials | Entered Mines 3099 | -9/Mines | Learned location of Storage (-7) 3365 | -9/Mines | Assisted by bots powering up and referring to "LRC-V3" 3434 | -9/Mines | Discovered new exit (range 9) 3653 | -9/Mines | Discovered new exit (range 11) 3758 | -9/Mines | A Derelict revealed a hidden shortcut to a safe place 3772 | -9/Mines | Deemed a non-threat by the Exiles lab entrance 3772 | -9/Mines | Discovered new exit (range 5) 3846 | -9/Mines | Entered Exiles 3846 | -9/Exiles | Accompanied by 2 allies 3876 | -9/Exiles | Led the pair of lost Derelicts to a safe place 3885 | -9/Exiles | Met 8R-AWN 3912 | -9/Exiles | Met EX-HEX 3986 | -9/Exiles | Met EX-DEC 4014 | -9/Exiles | Learned location of Zion (-7) 4114 | -9/Exiles | Discovered new exit (range 14) 4227 | -9/Exiles | Met EX-BIN 4249 | -9/Exiles | Aligned with FarCom system 4251 | -9/Exiles | Given EX-Vault access code 4291 | -9/Exiles | Opened EX-Vault 4302 | -9/Exiles | Found Modified TNC 4311 | -9/Exiles | Found Field Lobotomy Kit 4345 | -9/Exiles | Warned to stay clear of 0b10 Research branches 5027 | -9/Exiles | Attacked by the Exiles 5242 | -9/Exiles | Core integrity fell below 50% 5278 | -9/Exiles | Destroyed 8R-AWN 5281 | -9/Exiles | Lost 4 parts (1p2n1w) 5289 | -9/Exiles | Found Prototype Processor 5442 | -9/Exiles | Destroyed EX-HEX 5597 | -9/Exiles | Core integrity fell below 20% 5605 | -9/Exiles | Destroyed by EX-DEC with AWS/EX-DEC Last Messages --------------- 05471_ J5-HVA suffers critical hit (Destroy). 05471_ Destroyed Mak. Leg. 05474_ J5-HVA destroyed. 05486_ Imp. Targeting Computer destroyed. 05486_ System corrupted by crushing effect (+2). 05487_ DK-RAY destroyed. 05498_ GM-J5T destroyed. 05501_ Acquired 29 matter. 05506_ System corrupted: Assault Rifle jammed. 05506_ 5L-KAT destroyed. 05515_ Acquired 30 matter. 05518_ Acquired Mak. Sensor Array. 05519_ Acquired 13 matter. 05531_ EX-BIN: "I just want to science!" 05591_ Machine disabled. 05595_ Hrd. Light Armor Plating destroyed. 05599_ System corrupted: FCS attempts to trigger Assault Rifle. 05599_ System corrupted: Assault Rifle misfires. 05600_ Lgt. Treads destroyed. 05604_ Autogun destroyed. Map ----- +----------------------------------------------------+ | ##???????" "?????????##" ###########??? | | #???????# #????????##"" #????????????? | | = # ######### ###?######"" #????????????? | | = """""X# %#"###""""""" ##???????????? | | """""" " "" ##???######## | | # "" """ " #####""""""" | | ## " " " """ " | | ?### "" | | #??### " | | #???## | | #???## | | ?# #???##" | | ??# #???#"" """""" | | ???? ??##" ######""" | | ????? ?#"" ""##????#####""" | | ???????#""" """##?????????##""" | | ??????#""" """##???????????#"""" | | ??????#""" ""#???????????##"" | | ??????#"" ########??####"""" | | ??????#""" ##aaa####""" | | ??????#"" """" | | ??????##"" | | ???????#" % | | ???????## " | | ????????#" " % "" """ | | ????????#" @ ""## ##""" " " ""#" | | ????????#"" c ""#### ######""" """##" | | ????????#" ""##??# #????###""""#### | | ????????#""" ""#??## ####???######??? | | ????????## ""##??# " #???????????? | | ?????????#"" ""##???#" #???????????? | | ?????????##""" ##????#" "#???????????? | | ??????????##"""" ##?????#!!""!"#???????????? | | ???????????### #??????########???????????? | | ?????????????##### ##?????????????????????????? | | ?????????????????## #??????????????????????????? | | ??????????????????# #??????????????????????????? | | ??????????????????#= #??????????????????????????? | | ??????????????????# * #??????????????????????????? | | ??????????????????#= !#??????????????????????????? | | ??????????????????# * #??????????????????????????? | | ??????????????????# #??????????????????????????? | | ??????????????????# #??????????????????????????? | | ??????????????????# = #??????????????????????????? | | ??????????????????#! #??????????????????????????? | | ??????????????????# #??????????????????????????? | | ??????????????""""" ""?????????????????????????? | | ????????????? %* !!! ???????????????????????? | | ??????????? ! !!! ?????????????????????? | | ?????????? =% !!%!! "???????????????????? | +----------------------------------------------------+ Best States ------------- Heat Dissipation 28 Energy Generation 15 Energy Capacity 265 Matter Stores 300 Matter Capacity 300 Sight Range 16 Terrain Scan Density 10 Armor Coverage 150 Evasion (%) 40 Targeting Accuracy 6 Recoil Reduction 3 Item Schematics ----------------- None Robot Schematics ------------------ None Fabricated ------------ Nothing Alien Tech Used ----------------- None Achievements -------------- None Challenges ------------ None Game ------ Seed NovaPowerWand Manual? 0 Play Time 00:28:00 Cumulative 368.6 hours Start 2023.03.25 @ 20:20:55 End 2023.03.25 @ 20:44:50 Sessions 1 Manual Loads 0 Difficulty Rogue Special Mode None Game No. 461 Rogue 374 Adventurer 87 Explorer 0 Win Type - Total 17 Types 7/0/8/1/1/0/0/0/0 Lore% 86 Gallery% 90 Achievement% 73 Wizard Run 0 Options --------- ASCII 0 Keyboard 1 Movement Numpad Keybinds 0 Fullscreen 1 Font 18/SmallcapsGlow Map View 76x50 Tactical HUD 1 Map Filters NONE Filters NONE Steam 1 RUN: 05a634d9-e817-4cc7-be14-c49ba93c1ba1